bitfinex-derivatives/quotes_BTCF0:USTF0_20240905
["timestamp","ask_amount","ask_price","bid_price","bid_amount"]
[1725530132720,0.002,56831.0,56829.0,0.087987]
[1725530133023,0.01099964,56830.0,56829.0,0.087987]
[1725530134119,0.01099964,56830.0,56829.0,0.101987]
[1725530134311,0.01099964,56830.0,56829.0,0.115987]
[1725530136208,0.01099964,56830.0,56829.0,0.18619728]
[1725530137226,0.01100387,56830.0,56829.0,0.18619728]
[1725530138413,0.002,56831.0,56830.0,0.087986]
[1725530138613,0.002,56831.0,56830.0,0.16017751]
[1725530138813,0.002,56831.0,56830.0,1.28805751]
[1725530139014,0.01300375,56831.0,56830.0,1.217866]
[1725530139223,0.01300375,56831.0,56830.0,0.617866]
[1725530139617,0.37380375,56831.0,56830.0,0.117986]
[1725530140307,0.3628,56831.0,56830.0,0.117986]
[1725530140511,0.3738043,56831.0,56830.0,0.117986]
[1725530140808,0.0130043,56831.0,56830.0,0.117986]
[1725530141318,0.0130043,56831.0,56830.0,0.17061966]
[1725530141715,0.0130043,56831.0,56830.0,0.117986]
[1725530143615,0.0130043,56831.0,56830.0,0.18817751]
[1725530144130,0.0130043,56831.0,56830.0,0.117986]
[1725530144327,0.0130043,56831.0,56830.0,0.06209881]
[1725530144328,0.2530043,56831.0,56830.0,0.06209881]
[1725530144529,0.2530043,56831.0,56830.0,0.1147302]
[1725530146845,0.2530043,56831.0,56830.0,0.06209881]
[1725530147125,0.7017883,56831.0,56830.0,0.06209881]
[1725530150023,0.6138043,56831.0,56830.0,0.06209881]
[1725530150723,0.6028,56831.0,56830.0,0.06209881]
[1725530150928,0.61380493,56831.0,56830.0,0.06209881]
[1725530151125,0.6028,56831.0,56830.0,0.06209881]
[1725530151331,0.61380493,56831.0,56830.0,0.06209881]
[1725530152228,0.78977293,56831.0,56830.0,0.06209881]
[1725530152424,1.91765293,56831.0,56830.0,0.06209881]
[1725530153635,1.31765293,56831.0,56830.0,0.03]
[1725530153927,1.91765293,56831.0,56830.0,0.03]
[1725530154132,1.906648,56831.0,56830.0,0.03]
[1725530154318,1.31765411,56831.0,56830.0,0.03]
[1725530155836,1.91765411,56831.0,56830.0,0.03]
[1725530156032,1.31765411,56831.0,56830.0,0.03]
[1725530158532,1.31765411,56831.0,56821.0,0.05263139]
[1725530158533,0.52788,56830.0,56821.0,0.05263139]
[1725530158730,0.088,56821.0,56811.0,0.05263395]
[1725530158925,0.688813,56812.0,56811.0,0.05263395]
[1725530159122,0.688813,56812.0,56809.0,0.03128228]
[1725530159123,0.088017,56810.0,56809.0,0.08391623]
[1725530159324,0.10302311,56810.0,56809.0,0.05263395]
[1725530159535,0.09902311,56810.0,56809.0,0.05263395]
[1725530159740,0.088018,56809.0,56806.0,0.088023]
[1725530159933,0.6048,56807.0,56806.0,0.088023]
[1725530160235,0.40314862,56807.0,56806.0,0.11914077]
[1725530160426,0.3608,56807.0,56806.0,0.03111777]
[1725530160633,0.3608,56807.0,56806.0,0.004]
[1725530161029,0.448821,56807.0,56806.0,0.004]
[1725530161228,0.613021,56807.0,56806.0,0.004]
[1725530162231,0.613021,56807.0,56806.0,0.015]
[1725530162425,0.701042,56807.0,56806.0,0.015]
[1725530162737,0.703042,56807.0,56806.0,0.026]
[1725530162926,0.088032,56800.0,56799.0,0.00339646]
[1725530163130,0.692832,56800.0,56799.0,0.03585863]
[1725530163530,0.452832,56800.0,56799.0,0.03585863]
[1725530163737,0.692832,56800.0,56799.0,0.03585863]
[1725530164444,0.693832,56800.0,56799.0,0.03785863]
[1725530165230,0.693832,56800.0,56799.0,0.03585863]
[1725530165426,0.694832,56800.0,56799.0,0.00339646]
[1725530165833,0.08804,56795.0,56794.0,0.00286835]
[1725530166034,0.088046,56791.0,56790.0,0.0030509]
[1725530166241,0.692846,56791.0,56790.0,0.0030509]
[1725530166438,1.817086,56791.0,56790.0,0.03534376]
[1725530166648,1.817086,56791.0,56790.0,0.0030509]
[1725530167840,0.688846,56791.0,56790.0,0.0030509]
[1725530168435,0.689846,56791.0,56790.0,0.0030509]
[1725530168636,0.46085988,56791.0,56790.0,0.0030509]
[1725530168834,0.70085988,56791.0,56790.0,0.0030509]
[1725530169143,0.689846,56791.0,56790.0,0.0030509]
[1725530169334,0.690846,56791.0,56790.0,0.0030509]
[1725530170543,0.70186028,56791.0,56790.0,0.0030509]
[1725530171429,0.70186022,56791.0,56790.0,0.0030509]
[1725530172142,0.690846,56791.0,56790.0,0.0030509]
[1725530173341,0.70186038,56791.0,56790.0,0.0030509]
[1725530173647,0.690846,56791.0,56790.0,0.0030509]
[1725530173841,0.70186049,56791.0,56790.0,0.0030509]
[1725530174348,0.7018605,56791.0,56790.0,0.0030509]
[1725530175937,0.690846,56791.0,56790.0,0.0030509]
[1725530177040,0.70186043,56791.0,56790.0,0.0030509]
[1725530177943,0.690846,56791.0,56790.0,0.0030509]
[1725530179442,0.450846,56791.0,56790.0,0.0030509]
[1725530179752,0.3628,56791.0,56790.0,0.0910989]
[1725530180050,0.6028,56791.0,56790.0,0.0910989]
[1725530180239,0.690846,56791.0,56790.0,0.0030509]
[1725530181545,0.6028,56791.0,56790.0,0.0030509]
[1725530181748,0.55874819,56791.0,56790.0,0.0910989]
[1725530185854,0.55874819,56791.0,56790.0,0.0030509]
[1725530186964,0.64679419,56791.0,56790.0,0.0030509]
[1725530187750,0.65780798,56791.0,56790.0,0.0030509]
[1725530188564,0.65780798,56791.0,56790.0,0.05572315]
[1725530189153,0.65780798,56791.0,56790.0,0.0030509]
[1725530189664,0.65680798,56791.0,56790.0,0.0040509]
[1725530190348,0.56776198,56791.0,56790.0,0.0050509]
[1725530190754,0.55674819,56791.0,56790.0,0.0050509]
[1725530191258,0.56776113,56791.0,56790.0,0.07532246]
[1725530191647,0.56776113,56791.0,56790.0,0.0050509]
[1725530192059,0.56776113,56791.0,56790.0,0.0049909]
[1725530193160,0.65580713,56791.0,56790.0,0.0049909]
[1725530193568,0.56776113,56791.0,56790.0,0.0049909]
[1725530193754,0.65580713,56791.0,56790.0,0.0049909]
[1725530194659,0.328046,56791.0,56790.0,0.0049909]
[1725530194859,0.69985902,56791.0,56790.0,0.0049909]
[1725530195255,0.72720099,56791.0,56790.0,0.0049909]
[1725530195760,0.69985902,56791.0,56790.0,0.0049909]
[1725530198069,0.6998597,56791.0,56790.0,0.0049909]
[1725530198363,0.6998597,56791.0,56790.0,0.07539502]
[1725530200461,0.6998597,56791.0,56790.0,0.0049909]
[1725530201256,0.688846,56791.0,56790.0,0.0049909]
[1725530201464,0.69985981,56791.0,56790.0,0.0049909]
[1725530203152,0.69985981,56791.0,56790.0,0.05779298]
[1725530204363,0.77695651,56791.0,56790.0,0.0049909]
[1725530204559,0.41615651,56791.0,56790.0,0.0049909]
[1725530204761,0.7659427,56791.0,56790.0,0.0049909]
[1725530204959,0.77695651,56791.0,56790.0,0.0049909]
[1725530206672,0.69985981,56791.0,56790.0,0.0049909]
[1725530207173,0.78790581,56791.0,56790.0,0.0049909]
[1725530207468,2.08129447,56791.0,56790.0,0.0049909]
[1725530208154,2.07028066,56791.0,56787.0,0.03181078]
[1725530208357,0.176108,56786.0,56785.0,0.00297489]
[1725530208561,0.540908,56786.0,56785.0,0.00297489]
[1725530208767,0.61801066,56786.0,56785.0,0.00297489]
[1725530208966,0.62502596,56786.0,56785.0,0.00297489]
[1725530209161,0.62502596,56786.0,56785.0,0.03002674]
[1725530209371,0.62502596,56786.0,56785.0,0.00297489]
[1725530210583,0.26522596,56786.0,56785.0,0.00397489]
[1725530210875,0.9097233,56786.0,56785.0,0.00397489]
[1725530211269,0.9107233,56786.0,56785.0,0.00597489]
[1725530211682,0.4618693,56786.0,56785.0,0.0328198]
[1725530211977,0.4618693,56786.0,56785.0,0.05877697]
[1725530212161,0.4618693,56786.0,56785.0,0.00597489]
[1725530213364,0.4618693,56786.0,56785.0,0.03283897]
[1725530213571,0.4618693,56786.0,56785.0,0.00597489]
[1725530214976,0.450854,56786.0,56785.0,0.00597489]
[1725530215173,0.46186755,56786.0,56785.0,0.00597489]
[1725530215474,0.46186755,56786.0,56785.0,0.03249228]
[1725530215678,0.46186755,56786.0,56785.0,0.00597489]
[1725530217169,0.10106755,56786.0,56785.0,0.00597489]
[1725530217370,0.01301355,56786.0,56785.0,0.0327234]
[1725530217681,0.01301355,56786.0,56785.0,0.00597489]
[1725530218575,0.01301359,56786.0,56785.0,0.00597489]
[1725530220973,0.002,56786.0,56785.0,0.00597489]
[1725530221177,0.01301359,56786.0,56785.0,0.00597489]
[1725530223682,0.09010903,56786.0,56785.0,0.14682777]
[1725530223889,0.01301359,56786.0,56785.0,0.09402989]
[1725530224288,0.01301359,56786.0,56785.0,0.69275401]
[1725530224493,0.01301359,56786.0,56785.0,0.98314989]
[1725530224793,0.00026395,56791.0,56786.0,0.52828]
[1725530224985,0.00026395,56791.0,56790.0,0.07038302]
[1725530225181,0.00026395,56791.0,56790.0,0.3608]
[1725530225374,0.00026395,56791.0,56790.0,0.43115817]
[1725530225779,0.00026395,56791.0,56790.0,0.448848]
[1725530225989,0.00026395,56791.0,56790.0,0.51920693]
[1725530226191,0.00026395,56791.0,56790.0,0.448848]
[1725530226383,0.69094001,56801.0,56790.0,0.448848]
[1725530226384,0.3608,56801.0,56790.0,1.48904]
[1725530226581,0.07707974,56800.0,56798.0,0.24]
[1725530226890,0.07707974,56799.0,56796.0,0.088037]
[1725530227084,0.004,56797.0,56796.0,0.088037]
[1725530227682,0.004,56797.0,56796.0,0.50158926]
[1725530227876,0.004,56797.0,56796.0,0.448837]
[1725530228078,0.004,56797.0,56796.0,0.688837]
[1725530228282,0.004,56797.0,56796.0,0.75917335]
[1725530228481,0.004,56797.0,56796.0,0.688837]
[1725530228482,0.01,56797.0,56796.0,0.688837]
[1725530228883,0.015,56797.0,56796.0,0.688837]
[1725530229077,0.015,56797.0,56796.0,0.71607034]
[1725530229488,0.015,56797.0,56796.0,0.40795179]
[1725530229691,0.015,56797.0,56796.0,0.11527034]
[1725530232793,0.02601093,56797.0,56796.0,0.11527034]
[1725530234600,0.26601093,56797.0,56796.0,0.02723334]
[1725530234786,0.26601093,56797.0,56793.0,0.05268145]
[1725530234787,0.35404793,56797.0,56793.0,0.05268145]
[1725530234983,0.004,56794.0,56791.0,0.00026395]
[1725530235294,0.004,56794.0,56793.0,0.14072445]
[1725530235689,0.01501104,56794.0,56793.0,0.616283]
[1725530235895,0.004,56794.0,56793.0,0.616283]
[1725530236092,0.03134151,56794.0,56793.0,0.616283]
[1725530236392,0.01501104,56794.0,56793.0,0.088043]
[1725530236598,0.05812237,56794.0,56793.0,0.088043]
[1725530236789,0.08546386,56794.0,56793.0,0.088043]
[1725530237297,0.06012237,56794.0,56791.0,0.02763845]
[1725530237495,0.328044,56792.0,56791.0,0.02763845]
[1725530237684,0.14616637,56792.0,56791.0,0.02763845]
[1725530238495,0.14616637,56792.0,56791.0,0.38843845]
[1725530238496,0.17350703,56792.0,56791.0,0.38843845]
[1725530238693,0.17350703,56792.0,56791.0,0.02763845]
[1725530238891,0.14616831,56792.0,56791.0,0.02763845]
[1725530239795,0.17350896,56792.0,56791.0,0.02863845]
[1725530239997,0.14616831,56792.0,56791.0,0.02863845]
[1725530240196,0.17350904,56792.0,56791.0,0.02863845]
[1725530241404,0.1121634,56792.0,56791.0,0.02863845]
[1725530242207,0.26932508,56792.0,56791.0,0.02863845]
[1725530242616,0.25831404,56792.0,56791.0,0.02863845]
[1725530242805,0.10115236,56792.0,56791.0,0.02863845]
[1725530243002,0.11216381,56792.0,56791.0,0.02863845]
[1725530243400,0.01501145,56792.0,56791.0,0.08128077]
[1725530245607,0.004,56794.0,56791.0,0.08128077]
[1725530245608,0.004,56794.0,56791.0,0.48943845]
[1725530245911,0.004,56794.0,56793.0,0.090043]
[1725530246203,0.01501112,56794.0,56793.0,0.090043]
[1725530246410,0.01101112,56794.0,56793.0,0.090043]
[1725530246612,0.4553,56805.0,56793.0,1.28694]
[1725530246902,0.3608,56813.0,56810.0,0.088015]
[1725530247107,0.3608,56813.0,56812.0,0.102]
[1725530247308,0.37180851,56813.0,56812.0,0.1]
[1725530247707,0.01100851,56813.0,56812.0,0.188013]
[1725530247896,0.01100851,56813.0,56812.0,0.328013]
[1725530248606,0.01100851,56813.0,56812.0,0.6008]
[1725530248810,0.24026395,56818.0,56812.0,0.6008]
[1725530249011,0.02200714,56813.0,56812.0,0.6008]
[1725530249402,0.021,56813.0,56812.0,0.6008]
[1725530249901,0.03200708,56813.0,56812.0,0.6008]
[1725530250102,0.03200708,56813.0,56812.0,0.62743766]
[1725530251612,0.07510265,56813.0,56812.0,0.62743766]
[1725530252009,0.07510265,56813.0,56812.0,0.71545066]
[1725530252912,0.05129238,56813.0,56812.0,0.71545066]
[1725530253113,0.02734425,56817.0,56816.0,0.088007]
[1725530253307,0.00026395,56818.0,56817.0,0.233006]
[1725530253511,0.00026395,56818.0,56817.0,0.595806]
[1725530253717,0.00026395,56818.0,56817.0,0.593806]
[1725530254715,0.01126395,56818.0,56817.0,0.593806]
[1725530255926,0.01,56817.0,56816.0,0.003]
[1725530256225,0.012,56817.0,56816.0,0.243]
[1725530256723,0.002,56817.0,56816.0,0.242]
[1725530256922,0.002,56817.0,56816.0,0.330007]
[1725530257312,0.008,56817.0,56816.0,0.331007]
[1725530258418,0.008,56817.0,56816.0,0.243]
[1725530258623,0.008,56817.0,56816.0,0.003]
[1725530258815,0.018,56817.0,56816.0,0.004]
[1725530262323,0.106006,56817.0,56816.0,0.004]
[1725530262525,0.466806,56817.0,56816.0,0.004]
[1725530264724,0.3788,56817.0,56816.0,0.004]
[1725530265228,0.018,56817.0,56816.0,0.004]
[1725530265918,0.018,56817.0,56816.0,0.244]
[1725530268620,0.018,56817.0,56816.0,0.004]
[1725530273641,0.06109689,56817.0,56816.0,0.004]
[1725530273838,0.11511592,56817.0,56816.0,0.244]
[1725530274036,0.25294559,56817.0,56816.0,0.6048]
[1725530274235,0.11510634,56817.0,56816.0,0.692807]
[1725530274427,0.06109264,56817.0,56816.0,0.244]
[1725530274626,0.25294559,56817.0,56816.0,0.244]
[1725530274939,0.11510634,56817.0,56816.0,0.244]
[1725530275239,0.30695929,56817.0,56816.0,0.244]
[1725530275424,0.30095929,56817.0,56816.0,0.243]
[1725530275627,0.10910634,56817.0,56816.0,0.243]
[1725530275827,0.11910634,56817.0,56816.0,0.332007]
[1725530277126,0.10910634,56817.0,56816.0,1.459007]
[1725530277332,0.11910634,56817.0,56816.0,1.460007]
[1725530277637,0.23991142,56817.0,56816.0,1.460007]
[1725530277837,0.29392512,56817.0,56816.0,1.460007]
[1725530278044,0.28392512,56817.0,56816.0,1.459007]
[1725530278340,0.29392512,56817.0,56816.0,1.460007]
[1725530279033,0.29392512,56817.0,56816.0,1.548014]
[1725530279427,0.11910634,56817.0,56816.0,1.548014]
[1725530279631,0.11910634,56817.0,56816.0,1.788014]
[1725530279830,0.11910634,56817.0,56816.0,1.460007]
[1725530280648,0.022,56817.0,56816.0,1.460007]
[1725530281139,0.0061446,56817.0,56816.0,1.460007]
[1725530281331,0.0161446,56817.0,56816.0,1.460007]
[1725530281727,0.0161446,56817.0,56816.0,0.332007]
[1725530282536,0.0161446,56817.0,56816.0,0.244]
[1725530283644,0.0161446,56817.0,56816.0,0.004]
[1725530284936,0.3441506,56817.0,56816.0,0.004]
[1725530285143,0.4932506,56817.0,56816.0,0.004]
[1725530285446,0.2532506,56817.0,56816.0,0.004]
[1725530286242,0.8540506,56817.0,56816.0,0.004]
[1725530288739,1.01428903,56817.0,56816.0,0.004]
[1725530291745,0.65348903,56817.0,56816.0,0.004]
[1725530291937,1.01428903,56817.0,56816.0,0.004]
[1725530292342,0.77428903,56817.0,56816.0,0.004]
[1725530292549,1.01428903,56817.0,56816.0,0.004]
[1725530292734,1.01429133,56817.0,56816.0,0.004]
[1725530295735,0.8540506,56817.0,56816.0,0.004]
[1725530297846,0.9420566,56817.0,56816.0,0.004]
[1725530298459,0.7020566,56817.0,56816.0,0.004]
[1725530298751,0.9420566,56817.0,56816.0,0.004]
[1725530303455,0.8540506,56817.0,56816.0,0.004]
[1725530303662,0.6140506,56817.0,56816.0,0.004]
[1725530303851,0.35037373,56817.0,56816.0,0.092007]
[1725530304162,0.52502163,56817.0,56816.0,0.092007]
[1725530304856,0.52502163,56817.0,56816.0,0.004]
[1725530305660,0.35037373,56817.0,56816.0,0.004]
[1725530307649,0.11326773,56817.0,56816.0,0.004]
[1725530307849,0.51884548,56817.0,56816.0,0.004]
[1725530308153,0.44126787,56817.0,56816.0,0.004]
[1725530308360,0.20126787,56817.0,56816.0,0.004]
[1725530308553,0.11326187,56817.0,56816.0,0.004]
[1725530310962,0.0161446,56817.0,56816.0,0.004]
[1725530313472,0.2561446,56817.0,56816.0,0.004]
[1725530315468,0.0161446,56817.0,56816.0,0.244]
[1725530315668,0.00026395,56818.0,56817.0,0.088006]
[1725530315967,0.00026395,56818.0,56817.0,0.090006]
[1725530317168,0.00526395,56818.0,56817.0,0.091006]
[1725530318167,0.01126395,56818.0,56817.0,0.092006]
[1725530325873,0.1083676,56818.0,56817.0,0.092006]
[1725530326070,0.22914838,56818.0,56817.0,0.092006]
[1725530327381,0.28316058,56818.0,56817.0,0.092006]
[1725530327967,0.28316061,56818.0,56817.0,0.092006]
[1725530329379,0.10836763,56818.0,56817.0,0.092006]
[1725530331078,0.1083709,56818.0,56817.0,0.092006]
[1725530333082,0.01126395,56818.0,56817.0,0.092006]
[1725530333478,0.01126395,56818.0,56817.0,0.004]
[1725530334477,0.09926795,56818.0,56817.0,0.004]
[1725530338383,0.01126395,56818.0,56817.0,0.244]
[1725530341179,0.10837608,56818.0,56817.0,0.244]
[1725530341978,0.10837608,56818.0,56817.0,0.104]
[1725530342377,0.108376,56818.0,56817.0,0.104]
[1725530345091,0.28314919,56818.0,56817.0,0.104]
[1725530345389,0.108376,56818.0,56817.0,0.104]
[1725530345985,0.108376,56818.0,56817.0,0.192006]
[1725530347089,0.42154921,56818.0,56817.0,0.552806]
[1725530347288,0.36374062,56818.0,56817.0,0.552806]
[1725530347490,0.17149011,56818.0,56817.0,0.552806]
[1725530347787,0.108376,56818.0,56817.0,0.552806]
[1725530348087,0.108376,56818.0,56817.0,0.62307681]
[1725530348088,0.01126395,56818.0,56817.0,0.62307681]
[1725530349089,0.01126395,56818.0,56817.0,0.26227681]
[1725530353693,0.01126395,56818.0,56817.0,0.41857681]
[1725530354098,0.01126395,56818.0,56817.0,0.348306]
[1725530355887,0.01126395,56818.0,56817.0,0.004]
[1725530356094,0.11126395,56818.0,56817.0,0.07439195]
[1725530356290,0.11126395,56818.0,56817.0,0.07439401]
[1725530356495,0.10626395,56818.0,56817.0,0.004]
[1725530357097,0.19426795,56818.0,56817.0,0.004]
[1725530358400,0.19126795,56818.0,56817.0,0.003]
[1725530359105,0.19126795,56818.0,56817.0,0.002]
[1725530359900,0.18826795,56818.0,56817.0,0.002]
[1725530360099,0.19226795,56818.0,56817.0,0.002]
[1725530360607,0.18826795,56818.0,56817.0,0.002]
[1725530360904,0.19326795,56818.0,56817.0,0.002]
[1725530361614,0.19326795,56818.0,56817.0,0.07239401]
[1725530362609,0.19326795,56818.0,56817.0,0.002]
[1725530362908,0.19326795,56818.0,56817.0,0.07239401]
[1725530363114,0.19326795,56818.0,56817.0,0.002]
[1725530367517,0.09326795,56818.0,56817.0,0.002]
[1725530368407,0.24286795,56818.0,56817.0,0.002]
[1725530368801,0.33087195,56818.0,56817.0,0.002]
[1725530370317,0.33187195,56818.0,56817.0,0.003]
[1725530370519,0.09426795,56818.0,56817.0,0.003]
[1725530370727,0.19426795,56818.0,56817.0,0.003]
[1725530371720,0.28227195,56818.0,56817.0,0.05580754]
[1725530372308,0.28227195,56818.0,56817.0,0.003]
[1725530373025,0.19426795,56818.0,56817.0,0.003]
[1725530373812,0.19426795,56818.0,56817.0,0.05580754]
[1725530374018,0.088006,56817.0,56816.0,0.04027677]
[1725530374214,0.346806,56817.0,56816.0,0.04027677]
[1725530375409,0.712606,56817.0,56816.0,0.04027677]
[1725530376321,0.08801,56814.0,56813.0,0.088011]
[1725530376524,0.19001,56814.0,56813.0,0.088011]
[1725530376907,0.002,56814.0,56813.0,0.188011]
[1725530377112,0.002,56814.0,56813.0,0.344611]
[1725530377425,0.002,56814.0,56813.0,0.41500501]
[1725530377627,0.004,56814.0,56813.0,0.41500501]
[1725530378328,0.004,56814.0,56813.0,0.344611]
[1725530378715,0.004,56814.0,56813.0,0.41500501]
[1725530379025,0.004,56814.0,56813.0,0.41497228]
[1725530379822,0.004,56814.0,56813.0,0.344611]
[1725530381621,0.002,56814.0,56813.0,0.347611]
[1725530381815,0.002,56814.0,56813.0,1.475651]
[1725530382017,0.002,56814.0,56813.0,1.69743889]
[1725530382321,0.002,56814.0,56813.0,1.69743846]
[1725530382817,0.002,56814.0,56813.0,1.78545046]
[1725530383015,0.002,56814.0,56813.0,1.69775486]
[1725530383217,0.002,56814.0,56813.0,1.78565691]
[1725530383418,0.002,56814.0,56813.0,1.69775486]
[1725530383612,0.002,56814.0,56813.0,1.65156744]
[1725530384322,0.002,56814.0,56813.0,1.563663]
[1725530386327,0.00026395,56818.0,56817.0,0.088006]
[1725530386529,0.00026395,56818.0,56817.0,0.63868185]
[1725530387223,0.00026395,56818.0,56817.0,0.550806]
[1725530387930,0.3334,56820.0,56818.0,0.088004]
[1725530388225,0.3334,56820.0,56819.0,0.17786222]
[1725530388430,0.3334,56820.0,56819.0,0.31194286]
[1725530388639,0.3334,56820.0,56819.0,0.17786222]
[1725530388927,0.3334,56820.0,56819.0,0.190003]
[1725530390327,0.3394,56820.0,56819.0,0.190003]
[1725530391833,0.3394,56820.0,56819.0,0.21736259]
[1725530392629,0.3394,56820.0,56819.0,0.22436259]
[1725530393127,0.3334,56820.0,56819.0,0.22436259]
[1725530393324,0.3344,56820.0,56819.0,0.23236259]
[1725530399638,0.3344,56820.0,56819.0,0.14435959]
[1725530400125,0.16271458,56820.0,56819.0,0.68913072]
[1725530400633,0.35071558,56820.0,56819.0,0.58913072]
[1725530401035,0.43871658,56820.0,56819.0,0.58913072]
[1725530401225,0.61245762,56820.0,56819.0,0.58913072]
[1725530401727,0.61245762,56820.0,56819.0,0.24245819]
[1725530401928,0.61245762,56820.0,56819.0,0.04435959]
[1725530402129,0.51245762,56820.0,56819.0,0.04435959]
[1725530402429,0.51245762,56820.0,56819.0,0.39107028]
[1725530402430,0.088001,56820.0,56819.0,0.39107028]
[1725530402629,0.088001,56820.0,56819.0,0.41858735]
[1725530403446,0.087998,56822.0,56819.0,0.39107028]
[1725530403629,0.4605,56824.0,56821.0,0.189999]
[1725530403830,0.648495,56824.0,56823.0,0.002]
[1725530404030,0.5605,56824.0,56823.0,0.002]
[1725530404233,0.5605,56824.0,56823.0,0.23112452]
[1725530404443,0.5605,56824.0,56823.0,0.23112424]
[1725530404662,0.648495,56824.0,56823.0,0.23112424]
[1725530404939,0.648495,56824.0,56823.0,0.14308696]
[1725530405142,0.648495,56824.0,56822.0,0.02751479]
[1725530405332,0.002,56823.0,56822.0,0.02751479]
[1725530405642,0.002,56823.0,56822.0,0.37420325]
[1725530406537,0.002,56823.0,56822.0,0.37720325]
[1725530406935,0.649415,56824.0,56822.0,0.34968846]
[1725530407136,0.648495,56824.0,56823.0,0.14507779]
[1725530407532,0.648495,56824.0,56823.0,0.002]
[1725530408735,0.648495,56824.0,56823.0,0.005]
[1725530409736,0.648495,56824.0,56823.0,0.008]
[1725530412432,1.86445,56824.0,56823.0,0.008]
[1725530412636,1.176455,56824.0,56823.0,0.008]
[1725530413942,1.776455,56824.0,56823.0,0.008]
[1725530415839,1.86445,56824.0,56823.0,0.008]
[1725530418546,1.89084684,56824.0,56823.0,0.008]
[1725530422052,1.86445,56824.0,56823.0,0.008]
[1725530423048,0.175996,56822.0,56821.0,0.002]
[1725530423243,0.636796,56822.0,56821.0,0.002]
[1725530423556,1.766756,56822.0,56821.0,0.002]
[1725530423740,1.766756,56822.0,56808.0,0.07024563]
[1725530423741,0.528,56821.0,56808.0,0.07024563]
[1725530423945,0.528,56821.0,56804.0,0.088026]
[1725530423946,0.08802,56808.0,56806.0,0.02752294]
[1725530424259,0.3628,56809.0,56808.0,0.08802]
[1725530424448,0.4628,56809.0,56808.0,0.09002]
[1725530424846,0.4628,56809.0,56808.0,0.2916829]
[1725530425044,0.4628,56809.0,56808.0,0.2976829]
[1725530425250,0.4628,56809.0,56808.0,0.29768307]
[1725530425550,0.4628,56809.0,56808.0,0.32520519]
[1725530426356,0.3628,56809.0,56808.0,0.33120519]
[1725530426561,0.1,56811.0,56810.0,0.088017]
[1725530426747,0.1,56811.0,56810.0,0.32119827]
[1725530427753,0.1,56811.0,56810.0,0.19859909]
[1725530427965,0.1,56811.0,56810.0,0.32519806]
[1725530428447,0.00026395,56813.0,56812.0,0.088013]
[1725530428652,0.00026395,56813.0,56812.0,0.090013]
[1725530428851,0.00026395,56813.0,56812.0,0.190013]
[1725530429041,0.3608,56824.0,56812.0,0.66645327]
[1725530429243,0.548796,56824.0,56820.0,0.1]
[1725530429551,0.448795,56824.0,56823.0,0.002]
[1725530429955,0.688795,56824.0,56823.0,0.002]
[1725530431154,0.087999,56822.0,56820.0,0.005]
[1725530431362,0.242,56821.0,56820.0,0.005]
[1725530432060,0.33,56821.0,56820.0,0.005]
[1725530433157,0.33,56821.0,56820.0,0.02723111]
[1725530433354,0.33,56821.0,56818.0,0.088004]
[1725530433654,0.002,56819.0,56818.0,0.088004]
[1725530433860,0.3608,56824.0,56820.0,0.091001]
[1725530434060,0.3608,56824.0,56823.0,0.002]
[1725530434764,0.448795,56824.0,56823.0,0.002]
[1725530436250,0.448795,56824.0,56823.0,0.004]
[1725530436455,0.448795,56824.0,56823.0,0.006]
[1725530436855,0.688795,56824.0,56823.0,0.02717739]
[1725530437063,0.087998,56822.0,56819.0,0.02751675]
[1725530437264,0.242,56820.0,56819.0,0.02751698]
[1725530437559,0.242,56820.0,56818.0,0.088004]
[1725530437766,0.002,56819.0,56818.0,0.088004]
[1725530437948,0.09005892,56819.0,56817.0,0.16395966]
[1725530438153,0.08805892,56818.0,56817.0,0.21888864]
[1725530438354,0.09005892,56818.0,56817.0,0.11456566]
[1725530438962,0.09005892,56818.0,56813.0,0.21825109]
[1725530439154,0.08805892,56817.0,56814.0,0.07025109]
[1725530439469,0.17606594,56816.0,56813.0,0.33266889]
[1725530439665,0.002,56814.0,56813.0,0.33266889]
[1725530439961,0.09005894,56814.0,56813.0,0.25561662]
[1725530440165,0.09005894,56814.0,56813.0,0.26361662]
[1725530440467,0.17806894,56814.0,56813.0,0.17560462]
[1725530440861,0.17806894,56814.0,56810.0,0.088016]
[1725530440862,0.17806894,56814.0,56812.0,0.32305536]
[1725530441062,0.09001,56814.0,56813.0,0.006]
[1725530441266,0.41607097,56814.0,56813.0,0.006]
[1725530441868,0.40506335,56814.0,56813.0,0.006]
[1725530442055,0.41607102,56814.0,56813.0,0.006]
[1725530442251,0.41607102,56814.0,56812.0,0.026481]
[1725530442458,0.09006102,56813.0,56811.0,0.088015]
[1725530442763,0.08806102,56812.0,56811.0,0.088015]
[1725530443469,0.088018,56809.0,56808.0,0.20615109]
[1725530443765,0.17807902,56809.0,56808.0,0.23264518]
[1725530443968,0.17807902,56809.0,56808.0,0.23214567]
[1725530444763,0.17807902,56809.0,56808.0,0.161835]
[1725530445766,0.53887902,56809.0,56808.0,0.02643451]
[1725530445953,0.088023,56806.0,56802.0,0.02889129]
[1725530446267,0.088029,56802.0,56798.0,0.2781]
[1725530446469,0.17809002,56802.0,56801.0,0.0306829]
[1725530447171,0.17809002,56802.0,56798.0,0.18767352]
[1725530447359,0.004,56799.0,56798.0,0.18767352]
[1725530447560,0.09206102,56799.0,56798.0,0.19649319]
[1725530447761,0.09206102,56799.0,56798.0,0.15111967]
[1725530447960,0.09206102,56799.0,56798.0,0.00799065]
[1725530448260,0.08105335,56799.0,56796.0,0.23630195]
[1725530448562,0.01500991,56799.0,56798.0,0.005]
[1725530448866,0.07706941,56799.0,56798.0,0.005]
[1725530449167,0.08807932,56799.0,56796.0,0.08452294]
[1725530449473,0.004,56797.0,56796.0,0.17256094]
[1725530449686,0.09207932,56797.0,56796.0,0.03561248]
[1725530449863,0.18011632,56797.0,56796.0,0.03561248]
[1725530450560,0.18011632,56797.0,56796.0,0.04561248]
[1725530450964,1.39735332,56797.0,56796.0,0.04460521]
[1725530451268,1.39735332,56797.0,56796.0,0.01826395]